Workbook

Sheet Sub proj 2021
A1: PROJEKTOWANA KWOTA SUBWENCJI OGÓLNEJ DLA GMIN NA 2021 r.
A2: (ST3.4750.30.2020)
K3: w złotych
F4: Projektowana subwencja ogólna na 2021 r. | J4: Wpłaty na część równoważącą | K4: Planowane udziały gmin w pod.doch. od osób fiz. na 2021 r. 38,23%
A5: Kod gminy | D5: Typ i nazwa gminy | G5: z tego:
G6: Część oświatowa | H6: Część wyrównawcza | I6: Część równoważąca
A9: WK | B9: PK | C9: GK | D9: GT | E9: GNAZWA | F9: razem | G9: SUB_OSW | H9: WYRÓWNAWCZA pomn o 150%G | I9: SUMA_ROW | J9: WPLATA_G | K9: P_UDZIAL18
A10: 02 | B10: 01 | C10: 01 | D10: 1 | E10: BOLESŁAWIEC | F10: =G10+H10+I10 -> 28090201 | G10: 28090201 | H10: 0 | I10: 0 | J10: 0 | K10: 43389702
A11: 02 | B11: 01 | C11: 02 | D11: 2 | E11: BOLESŁAWIEC | F11: =G11+H11+I11 -> 13436734 | G11: 10368370 | H11: 3068364 | I11: 0 | J11: 0 | K11: 14759885
A12: 02 | B12: 01 | C12: 03 | D12: 2 | E12: GROMADKA | F12: 5709361 | G12: 4114645 | H12: 1594716 | I12: 0 | J12: 0 | K12: 3962390
A13: 02 | B13: 01 | C13: 04 | D13: 3 | E13: NOWOGRODZIEC | F13: 14896047 | G13: 13091799 | H13: 1614179 | I13: 190069 | J13: 0 | K13: 9762034
A14: 02 | B14: 01 | C14: 05 | D14: 2 | E14: OSIECZNICA | F14: 10126592 | G14: 7816277 | H14: 2262546 | I14: 47769 | J14: 0 | K14: 6318261
A15: 02 | B15: 01 | C15: 06 | D15: 2 | E15: WARTA BOLESŁAWIECKA | F15: 9520717 | G15: 8323435 | H15: 1195210 | I15: 2072 | J15: 0 | K15: 6343919
A16: 02 | B16: 02 | C16: 01 | D16: 1 | E16: BIELAWA | F16: 35775746 | G16: 19388463 | H16: 16279445 | I16: 107838 | J16: 0 | K16: 23527856
A17: 02 | B17: 02 | C17: 02 | D17: 1 | E17: DZIERŻONIÓW | F17: 25263890 | G17: 21347587 | H17: 3482208 | I17: 434095 | J17: 0 | K17: 31018253
A18: 02 | B18: 02 | C18: 03 | D18: 3 | E18: PIESZYCE | F18: 9165351 | G18: 4953677 | H18: 4059985 | I18: 151689 | J18: 0 | K18: 7063404
A19: 02 | B19: 02 | C19: 04 | D19: 1 | E19: PIŁAWA GÓRNA | F19: 6089412 | G19: 3032173 | H19: 3057239 | I19: 0 | J19: 0 | K19: 3688800
A20: 02 | B20: 02 | C20: 05 | D20: 2 | E20: DZIERŻONIÓW | F20: 10066372 | G20: 5821666 | H20: 4244706 | I20: 0 | J20: 0 | K20: 7385453
A21: 02 | B21: 02 | C21: 06 | D21: 2 | E21: ŁAGIEWNIKI | F21: 10414584 | G21: 6076678 | H21: 4337906 | I21: 0 | J21: 0 | K21: 5677382
A22: 02 | B22: 02 | C22: 07 | D22: 3 | E22: NIEMCZA | F22: 6531865 | G22: 3798924 | H22: 2728018 | I22: 4923 | J22: 0 | K22: 4177194
A23: 02 | B23: 03 | C23: 01 | D23: 1 | E23: GŁOGÓW | F23: 47749095 | G23: 47690153 | H23: 0 | I23: 58942 | J23: 0 | K23: 86788320
A24: 02 | B24: 03 | C24: 02 | D24: 2 | E24: GŁOGÓW | F24: 5729925 | G24: 4886972 | H24: 842953 | I24: 0 | J24: 0 | K24: 10590145
A25: 02 | B25: 03 | C25: 03 | D25: 2 | E25: JERZMANOWA | F25: 5336026 | G25: 5336026 | H25: 0 | I25: 0 | J25: 4521209 | K25: 9405111
A26: 02 | B26: 03 | C26: 04 | D26: 2 | E26: KOTLA | F26: 6019170 | G26: 4076500 | H26: 1942670 | I26: 0 | J26: 0 | K26: 3838367
A27: 02 | B27: 03 | C27: 05 | D27: 2 | E27: PĘCŁAW | F27: 3021610 | G27: 1474865 | H27: 1546745 | I27: 0 | J27: 0 | K27: 1599042
A28: 02 | B28: 03 | C28: 06 | D28: 2 | E28: ŻUKOWICE | F28: 3714594 | G28: 2901536 | H28: 813058 | I28: 0 | J28: 0 | K28: 2519553
A29: 02 | B29: 04 | C29: 01 | D29: 3 | E29: GÓRA | F29: 22803162 | G29: 14225187 | H29: 8359516 | I29: 218459 | J29: 0 | K29: 13930583
A30: 02 | B30: 04 | C30: 02 | D30: 2 | E30: JEMIELNO | F30: 5415682 | G30: 2410599 | H30: 2874639 | I30: 130444 | J30: 0 | K30: 1209759
A31: 02 | B31: 04 | C31: 03 | D31: 2 | E31: NIECHLÓW | F31: 7286536 | G31: 3805513 | H31: 3471730 | I31: 9293 | J31: 0 | K31: 2427857
A32: 02 | B32: 04 | C32: 04 | D32: 3 | E32: WĄSOSZ | F32: 10454764 | G32: 6075085 | H32: 4219335 | I32: 160344 | J32: 0 | K32: 5037275
A33: 02 | B33: 05 | C33: 01 | D33: 1 | E33: JAWOR | F33: 16473476 | G33: 13734123 | H33: 2739353 | I33: 0 | J33: 0 | K33: 21170284
A34: 02 | B34: 05 | C34: 02 | D34: 3 | E34: BOLKÓW | F34: 16719471 | G34: 8030192 | H34: 8379020 | I34: 310259 | J34: 0 | K34: 6213533
A35: 02 | B35: 05 | C35: 03 | D35: 2 | E35: MĘCINKA | F35: 5312960 | G35: 4019578 | H35: 1293382 | I35: 0 | J35: 0 | K35: 3874903
A36: 02 | B36: 05 | C36: 04 | D36: 2 | E36: MŚCIWOJÓW | F36: 4098252 | G36: 2848982 | H36: 1249270 | I36: 0 | J36: 0 | K36: 2772593
A37: 02 | B37: 05 | C37: 05 | D37: 2 | E37: PASZOWICE | F37: 4959544 | G37: 2787394 | H37: 2172150 | I37: 0 | J37: 0 | K37: 2728452
A38: 02 | B38: 05 | C38: 06 | D38: 2 | E38: WĄDROŻE WIELKIE | F38: 5698351 | G38: 3519665 | H38: 2178686 | I38: 0 | J38: 0 | K38: 2974683
A39: 02 | B39: 06 | C39: 01 | D39: 1 | E39: KARPACZ | F39: 4582674 | G39: 4562749 | H39: 0 | I39: 19925 | J39: 1116428 | K39: 5619940
A40: 02 | B40: 06 | C40: 02 | D40: 1 | E40: KOWARY | F40: 9313395 | G40: 6551443 | H40: 2626681 | I40: 135271 | J40: 0 | K40: 8580138
A41: 02 | B41: 06 | C41: 03 | D41: 1 | E41: PIECHOWICE | F41: 2538477 | G41: 2538477 | H41: 0 | I41: 0 | J41: 0 | K41: 5992358
A42: 02 | B42: 06 | C42: 04 | D42: 1 | E42: SZKLARSKA PORĘBA | F42: 3250765 | G42: 2578279 | H42: 672486 | I42: 0 | J42: 0 | K42: 5946462
A43: 02 | B43: 06 | C43: 05 | D43: 2 | E43: JANOWICE WIELKIE | F43: 5277574 | G43: 2646140 | H43: 2589526 | I43: 41908 | J43: 0 | K43: 3244055
A44: 02 | B44: 06 | C44: 06 | D44: 2 | E44: JEŻÓW SUDECKI | F44: 6171437 | G44: 4978404 | H44: 1193033 | I44: 0 | J44: 0 | K44: 10808729
A45: 02 | B45: 06 | C45: 07 | D45: 2 | E45: MYSŁAKOWICE | F45: 9395206 | G45: 7921286 | H45: 1473920 | I45: 0 | J45: 0 | K45: 8955036
A46: 02 | B46: 06 | C46: 08 | D46: 2 | E46: PODGÓRZYN | F46: 7047979 | G46: 6429428 | H46: 618551 | I46: 0 | J46: 0 | K46: 7831935
A47: 02 | B47: 06 | C47: 09 | D47: 2 | E47: STARA KAMIENICA | F47: 6079430 | G47: 4846467 | H47: 1148526 | I47: 84437 | J47: 0 | K47: 3756792
A48: 02 | B48: 07 | C48: 01 | D48: 1 | E48: KAMIENNA GÓRA | F48: 18520194 | G48: 11023296 | H48: 7423987 | I48: 72911 | J48: 0 | K48: 15510499
A49: 02 | B49: 07 | C49: 02 | D49: 2 | E49: KAMIENNA GÓRA | F49: 12987588 | G49: 7802813 | H49: 5173752 | I49: 11023 | J49: 0 | K49: 7620673
A50: 02 | B50: 07 | C50: 03 | D50: 3 | E50: LUBAWKA | F50: 15216571 | G50: 7300891 | H50: 7724002 | I50: 191678 | J50: 0 | K50: 7368919
A51: 02 | B51: 07 | C51: 04 | D51: 2 | E51: MARCISZÓW | F51: 7379666 | G51: 3358068 | H51: 3918805 | I51: 102793 | J51: 0 | K51: 2805738
A52: 02 | B52: 08 | C52: 01 | D52: 1 | E52: DUSZNIKI-ZDRÓJ | F52: 4329952 | G52: 4277866 | H52: 0 | I52: 52086 | J52: 0 | K52: 4272768
A53: 02 | B53: 08 | C53: 02 | D53: 1 | E53: KŁODZKO | F53: 23786891 | G53: 18265246 | H53: 5519773 | I53: 1872 | J53: 0 | K53: 24151104
A54: 02 | B54: 08 | C54: 03 | D54: 1 | E54: KUDOWA-ZDRÓJ | F54: 11448705 | G54: 7849087 | H54: 3580044 | I54: 19574 | J54: 0 | K54: 7127641
A55: 02 | B55: 08 | C55: 04 | D55: 1 | E55: NOWA RUDA | F55: 17969035 | G55: 9860821 | H55: 7968879 | I55: 139335 | J55: 0 | K55: 18221133
A56: 02 | B56: 08 | C56: 05 | D56: 1 | E56: POLANICA-ZDRÓJ | F56: 3563210 | G56: 3558858 | H56: 0 | I56: 4352 | J56: 0 | K56: 6571022
A57: 02 | B57: 08 | C57: 06 | D57: 3 | E57: BYSTRZYCA KŁODZKA | F57: 28968633 | G57: 16933248 | H57: 11519580 | I57: 515805 | J57: 0 | K57: 12736892
A58: 02 | B58: 08 | C58: 07 | D58: 2 | E58: KŁODZKO | F58: 23433662 | G58: 13526719 | H58: 9886066 | I58: 20877 | J58: 0 | K58: 12740790
A59: 02 | B59: 08 | C59: 08 | D59: 3 | E59: LĄDEK-ZDRÓJ | F59: 9056639 | G59: 4290258 | H59: 4557683 | I59: 208698 | J59: 0 | K59: 5850872
A60: 02 | B60: 08 | C60: 09 | D60: 2 | E60: LEWIN KŁODZKI | F60: 3104054 | G60: 1683852 | H60: 1353758 | I60: 66444 | J60: 0 | K60: 983186
A61: 02 | B61: 08 | C61: 10 | D61: 3 | E61: MIĘDZYLESIE | F61: 12517489 | G61: 5738190 | H61: 6571164 | I61: 208135 | J61: 0 | K61: 4143572
A62: 02 | B62: 08 | C62: 11 | D62: 2 | E62: NOWA RUDA | F62: 18930564 | G62: 11287781 | H62: 7480822 | I62: 161961 | J62: 0 | K62: 8525737
A63: 02 | B63: 08 | C63: 12 | D63: 3 | E63: RADKÓW | F63: 11599479 | G63: 7316691 | H63: 3921750 | I63: 361038 | J63: 0 | K63: 5705342
A64: 02 | B64: 08 | C64: 13 | D64: 3 | E64: STRONIE ŚLĄSKIE | F64: 6910432 | G64: 4014699 | H64: 2717550 | I64: 178183 | J64: 0 | K64: 4805172
A65: 02 | B65: 08 | C65: 14 | D65: 3 | E65: SZCZYTNA | F65: 9086334 | G65: 3692493 | H65: 5393841 | I65: 0 | J65: 0 | K65: 5267864
A66: 02 | B66: 09 | C66: 01 | D66: 1 | E66: CHOJNÓW | F66: 13205873 | G66: 9075697 | H66: 4117971 | I66: 12205 | J66: 0 | K66: 12006060
A67: 02 | B67: 09 | C67: 02 | D67: 2 | E67: CHOJNÓW | F67: 10456492 | G67: 6711562 | H67: 3744450 | I67: 480 | J67: 0 | K67: 7680568
A68: 02 | B68: 09 | C68: 03 | D68: 2 | E68: KROTOSZYCE | F68: 3167071 | G68: 2457075 | H68: 709996 | I68: 0 | J68: 0 | K68: 3078892
A69: 02 | B69: 09 | C69: 04 | D69: 2 | E69: KUNICE | F69: 6377310 | G69: 5418059 | H69: 959251 | I69: 0 | J69: 0 | K69: 11481755
A70: 02 | B70: 09 | C70: 05 | D70: 2 | E70: LEGNICKIE POLE | F70: 3609571 | G70: 3609571 | H70: 0 | I70: 0 | J70: 626710 | K70: 5154704
A71: 02 | B71: 09 | C71: 06 | D71: 2 | E71: MIŁKOWICE | F71: 5944847 | G71: 4594517 | H71: 1350330 | I71: 0 | J71: 0 | K71: 6668931
A72: 02 | B72: 09 | C72: 07 | D72: 3 | E72: PROCHOWICE | F72: 7194295 | G72: 6106283 | H72: 1088012 | I72: 0 | J72: 0 | K72: 5823799
A73: 02 | B73: 09 | C73: 08 | D73: 2 | E73: RUJA | F73: 3122968 | G73: 1542698 | H73: 1580270 | I73: 0 | J73: 0 | K73: 1746167
A74: 02 | B74: 10 | C74: 01 | D74: 1 | E74: LUBAŃ | F74: 15951528 | G74: 12371930 | H74: 3579598 | I74: 0 | J74: 0 | K74: 20665701
A75: 02 | B75: 10 | C75: 02 | D75: 1 | E75: ŚWIERADÓW-ZDRÓJ | F75: =G75+H75+I75 -> 4530374 | G75: 4459198 | H75: 0 | I75: 71176 | J75: 0 | K75: 3383460
A76: 02 | B76: 10 | C76: 03 | D76: 3 | E76: LEŚNA | F76: 14983599 | G76: 7678073 | H76: 6984692 | I76: 320834 | J76: 0 | K76: 5290726
A77: 02 | B77: 10 | C77: 04 | D77: 2 | E77: LUBAŃ | F77: 9065824 | G77: 5424357 | H77: 3641467 | I77: 0 | J77: 0 | K77: 5066669
A78: 02 | B78: 10 | C78: 05 | D78: 3 | E78: OLSZYNA | F78: 7508858 | G78: 4970789 | H78: 2519673 | I78: 18396 | J78: 0 | K78: 4880837
A79: 02 | B79: 10 | C79: 06 | D79: 2 | E79: PLATERÓWKA | F79: 1535921 | G79: 1115568 | H79: 420353 | I79: 0 | J79: 0 | K79: 1239179
A80: 02 | B80: 10 | C80: 07 | D80: 2 | E80: SIEKIERCZYN | F80: 5898754 | G80: 3703800 | H80: 2194954 | I80: 0 | J80: 0 | K80: 3891960
A81: 02 | B81: 11 | C81: 01 | D81: 1 | E81: LUBIN | F81: 56624271 | G81: 56624271 | H81: 0 | I81: 0 | J81: 0 | K81: 108940790
A82: 02 | B82: 11 | C82: 02 | D82: 2 | E82: LUBIN | F82: 9700585 | G82: 9700585 | H82: 0 | I82: 0 | J82: 3278601 | K82: 30018294
A83: 02 | B83: 11 | C83: 03 | D83: 2 | E83: RUDNA | F83: 7990588 | G83: 7990588 | H83: 0 | I83: 0 | J83: 2742755 | K83: 8795470
A84: 02 | B84: 11 | C84: 04 | D84: 3 | E84: ŚCINAWA | F84: 10264275 | G84: 6350094 | H84: 3900763 | I84: 13418 | J84: 0 | K84: 8839158
A85: 02 | B85: 12 | C85: 01 | D85: 3 | E85: GRYFÓW ŚLĄSKI | F85: 10151039 | G85: 5030589 | H85: 5023297 | I85: 97153 | J85: 0 | K85: 6960953
A86: 02 | B86: 12 | C86: 02 | D86: 3 | E86: LUBOMIERZ | F86: 14675379 | G86: 7788843 | H86: 6477103 | I86: 409433 | J86: 0 | K86: 2820809
A87: 02 | B87: 12 | C87: 03 | D87: 3 | E87: LWÓWEK ŚLĄSKI | F87: 17573817 | G87: 10456254 | H87: 7117563 | I87: 0 | J87: 0 | K87: 13482979
A88: 02 | B88: 12 | C88: 04 | D88: 3 | E88: MIRSK | F88: 13838169 | G88: 6126615 | H88: 7269360 | I88: 442194 | J88: 0 | K88: 4953251
A89: 02 | B89: 12 | C89: 05 | D89: 3 | E89: WLEŃ | F89: 6516955 | G89: 3027220 | H89: 3382641 | I89: 107094 | J89: 0 | K89: 2559248
A90: 02 | B90: 13 | C90: 01 | D90: 2 | E90: CIESZKÓW | F90: 7631221 | G90: 4348141 | H90: 3279909 | I90: 3171 | J90: 0 | K90: 3731649
A91: 02 | B91: 13 | C91: 02 | D91: 2 | E91: KROŚNICE | F91: 8878068 | G91: 7052281 | H91: 1825787 | I91: 0 | J91: 0 | K91: 6738313
A92: 02 | B92: 13 | C92: 03 | D92: 3 | E92: MILICZ | F92: 31876735 | G92: 22986003 | H92: 8890732 | I92: 0 | J92: 0 | K92: 21049696
A93: 02 | B93: 14 | C93: 01 | D93: 1 | E93: OLEŚNICA | F93: 26644417 | G93: 26580533 | H93: 0 | I93: 63884 | J93: 0 | K93: 43092506
A94: 02 | B94: 14 | C94: 02 | D94: 3 | E94: BIERUTÓW | F94: 13823421 | G94: 7668442 | H94: 6088645 | I94: 66334 | J94: 0 | K94: 7227663
A95: 02 | B95: 14 | C95: 03 | D95: 2 | E95: DOBROSZYCE | F95: 9058870 | G95: 6939399 | H95: 2119471 | I95: 0 | J95: 0 | K95: 6450549
A96: 02 | B96: 14 | C96: 04 | D96: 2 | E96: DZIADOWA KŁODA | F96: 9246258 | G96: 5198550 | H96: 4007820 | I96: 39888 | J96: 0 | K96: 2380815
A97: 02 | B97: 14 | C97: 05 | D97: 3 | E97: MIĘDZYBÓRZ | F97: 7753937 | G97: 5509304 | H97: 2101957 | I97: 142676 | J97: 0 | K97: 3208693
A98: 02 | B98: 14 | C98: 06 | D98: 2 | E98: OLEŚNICA | F98: 12029220 | G98: 9382487 | H98: 2646733 | I98: 0 | J98: 0 | K98: 15840131
A99: 02 | B99: 14 | C99: 07 | D99: 3 | E99: SYCÓW | F99: 15232984 | G99: 12122432 | H99: 3039512 | I99: 71040 | J99: 0 | K99: 15486805
A100: 02 | B100: 14 | C100: 08 | D100: 3 | E100: TWARDOGÓRA | F100: 10809885 | G100: 8858071 | H100: 1718362 | I100: 233452 | J100: 0 | K100: 15506425
A101: 02 | B101: 15 | C101: 01 | D101: 1 | E101: OŁAWA | F101: 23957767 | G101: 23777659 | H101: 0 | I101: 180108 | J101: 0 | K101: 42276477
A102: 02 | B102: 15 | C102: 02 | D102: 2 | E102: DOMANIÓW | F102: 8449194 | G102: 6446736 | H102: 2002458 | I102: 0 | J102: 0 | K102: 3748622
A103: 02 | B103: 15 | C103: 03 | D103: 3 | E103: JELCZ-LASKOWICE | F103: 19251276 | G103: 19162766 | H103: 0 | I103: 88510 | J103: 0 | K103: 29012416
A104: 02 | B104: 15 | C104: 04 | D104: 2 | E104: OŁAWA | F104: 16080481 | G104: 13517584 | H104: 2562897 | I104: 0 | J104: 0 | K104: 20203096
A105: 02 | B105: 16 | C105: 01 | D105: 3 | E105: CHOCIANÓW | F105: 11132578 | G105: 8438776 | H105: 2434299 | I105: 259503 | J105: 0 | K105: 14344717
A106: 02 | B106: 16 | C106: 02 | D106: 2 | E106: GAWORZYCE | F106: 5802231 | G106: 3550102 | H106: 2252129 | I106: 0 | J106: 0 | K106: 3226041
A107: 02 | B107: 16 | C107: 03 | D107: 2 | E107: GRĘBOCICE | F107: 5553409 | G107: 5553409 | H107: 0 | I107: 0 | J107: 4640869 | K107: 4757492
A108: 02 | B108: 16 | C108: 04 | D108: 3 | E108: POLKOWICE | F108: 21370484 | G108: 21148945 | H108: 0 | I108: 221539 | J108: 22413897 | K108: 39636048
A109: 02 | B109: 16 | C109: 05 | D109: 3 | E109: PRZEMKÓW | F109: 10928210 | G109: 7154245 | H109: 3581705 | I109: 192260 | J109: 0 | K109: 7858508
A110: 02 | B110: 16 | C110: 06 | D110: 2 | E110: RADWANICE | F110: 5207069 | G110: 5207069 | H110: 0 | I110: 0 | J110: 724181 | K110: 5586318
A111: 02 | B111: 17 | C111: 01 | D111: 2 | E111: BORÓW | F111: 6140252 | G111: 4161963 | H111: 1978289 | I111: 0 | J111: 0 | K111: 4116181
A112: 02 | B112: 17 | C112: 02 | D112: 2 | E112: KONDRATOWICE | F112: 4987925 | G112: 3423129 | H112: 1564796 | I112: 0 | J112: 0 | K112: 2609992
A113: 02 | B113: 17 | C113: 03 | D113: 2 | E113: PRZEWORNO | F113: 7023706 | G113: 3224820 | H113: 3798886 | I113: 0 | J113: 0 | K113: 3113000
A114: 02 | B114: 17 | C114: 04 | D114: 3 | E114: STRZELIN | F114: 17911359 | G114: 17494841 | H114: 0 | I114: 416518 | J114: 0 | K114: 22304627
A115: 02 | B115: 17 | C115: 05 | D115: 3 | E115: WIĄZÓW | F115: 10797081 | G115: 6398299 | H115: 4398782 | I115: 0 | J115: 0 | K115: 4520051
A116: 02 | B116: 18 | C116: 01 | D116: 2 | E116: KOSTOMŁOTY | F116: 9057975 | G116: 5903506 | H116: 3154469 | I116: 0 | J116: 0 | K116: 5676721
A117: 02 | B117: 18 | C117: 02 | D117: 2 | E117: MALCZYCE | F117: 6942847 | G117: 4676281 | H117: 2266566 | I117: 0 | J117: 0 | K117: 5136337
A118: 02 | B118: 18 | C118: 03 | D118: 2 | E118: MIĘKINIA | F118: 19095057 | G118: 17708055 | H118: 1387002 | I118: 0 | J118: 0 | K118: 24604272
A119: 02 | B119: 18 | C119: 04 | D119: 3 | E119: ŚRODA ŚLĄSKA | F119: 18053413 | G119: 16282357 | H119: 1771056 | I119: 0 | J119: 0 | K119: 21101113
A120: 02 | B120: 18 | C120: 05 | D120: 2 | E120: UDANIN | F120: 6564975 | G120: 3543906 | H120: 3021069 | I120: 0 | J120: 0 | K120: 3034055
A121: 02 | B121: 19 | C121: 01 | D121: 1 | E121: ŚWIDNICA | F121: 38991464 | G121: 38991464 | H121: 0 | I121: 0 | J121: 0 | K121: 67062042
A122: 02 | B122: 19 | C122: 02 | D122: 1 | E122: ŚWIEBODZICE | F122: 17042929 | G122: 17042929 | H122: 0 | I122: 0 | J122: 0 | K122: 26051903
A123: 02 | B123: 19 | C123: 03 | D123: 2 | E123: DOBROMIERZ | F123: 7589723 | G123: 4905779 | H123: 2665723 | I123: 18221 | J123: 0 | K123: 3168822
A124: 02 | B124: 19 | C124: 04 | D124: 3 | E124: JAWORZYNA ŚLĄSKA | F124: 10123777 | G124: 6706799 | H124: 3416978 | I124: 0 | J124: 0 | K124: 8461919
A125: 02 | B125: 19 | C125: 05 | D125: 2 | E125: MARCINOWICE | F125: 7148975 | G125: 4791528 | H125: 2357447 | I125: 0 | J125: 0 | K125: 5273845
A126: 02 | B126: 19 | C126: 06 | D126: 3 | E126: STRZEGOM | F126: 18783646 | G126: 18783646 | H126: 0 | I126: 0 | J126: 0 | K126: 23055531
A127: 02 | B127: 19 | C127: 07 | D127: 2 | E127: ŚWIDNICA | F127: 18310191 | G127: 16322169 | H127: 1988022 | I127: 0 | J127: 0 | K127: 19360776
A128: 02 | B128: 19 | C128: 08 | D128: 3 | E128: ŻARÓW | F128: 9872234 | G128: 9862693 | H128: 0 | I128: 9541 | J128: 0 | K128: 10878740
A129: 02 | B129: 20 | C129: 01 | D129: 3 | E129: OBORNIKI ŚLĄSKIE | F129: 14977508 | G129: 14965724 | H129: 0 | I129: 11784 | J129: 0 | K129: 26623506
A130: 02 | B130: 20 | C130: 02 | D130: 3 | E130: PRUSICE | F130: 12611321 | G130: 7463518 | H130: 5147803 | I130: 0 | J130: 0 | K130: 6835835
A131: 02 | B131: 20 | C131: 03 | D131: 3 | E131: TRZEBNICA | F131: 22603608 | G131: 21061006 | H131: 1348336 | I131: 194266 | J131: 0 | K131: 32984971
A132: 02 | B132: 20 | C132: 04 | D132: 2 | E132: WISZNIA MAŁA | F132: 10298367 | G132: 9664257 | H132: 634110 | I132: 0 | J132: 0 | K132: 17372807
A133: 02 | B133: 20 | C133: 05 | D133: 2 | E133: ZAWONIA | F133: 6316683 | G133: 5072529 | H133: 1244154 | I133: 0 | J133: 0 | K133: 9111633
A134: 02 | B134: 20 | C134: 06 | D134: 3 | E134: ŻMIGRÓD | F134: 18078044 | G134: 10512263 | H134: 7397631 | I134: 168150 | J134: 0 | K134: 11758477
A135: 02 | B135: 21 | C135: 01 | D135: 1 | E135: BOGUSZÓW-GORCE | F135: 17307623 | G135: 7105636 | H135: 10017348 | I135: 184639 | J135: 0 | K135: 11603225
A136: 02 | B136: 21 | C136: 02 | D136: 1 | E136: JEDLINA-ZDRÓJ | F136: 5403678 | G136: 3636550 | H136: 1757681 | I136: 9447 | J136: 0 | K136: 3705952
A137: 02 | B137: 21 | C137: 03 | D137: 1 | E137: SZCZAWNO-ZDRÓJ | F137: 2677959 | G137: 2677959 | H137: 0 | I137: 0 | J137: 0 | K137: 8695426
A138: 02 | B138: 21 | C138: 04 | D138: 2 | E138: CZARNY BÓR | F138: 5935500 | G138: 5202546 | H138: 701978 | I138: 30976 | J138: 0 | K138: 4535316
A139: 02 | B139: 21 | C139: 05 | D139: 3 | E139: GŁUSZYCA | F139: =G139+H139+I139 -> 10534688 | G139: 4131525 | H139: 6203703 | I139: 199460 | J139: 0 | K139: 6068353
A140: 02 | B140: 21 | C140: 06 | D140: 3 | E140: MIEROSZÓW | F140: 8303754 | G140: 5371027 | H140: 2850458 | I140: 82269 | J140: 0 | K140: 4921980
A141: 02 | B141: 21 | C141: 07 | D141: 2 | E141: STARE BOGACZOWICE | F141: 6000883 | G141: 2870888 | H141: 3129995 | I141: 0 | J141: 0 | K141: 3881705
A142: 02 | B142: 21 | C142: 08 | D142: 2 | E142: WALIM | F142: 5728601 | G142: 3844584 | H142: 1813130 | I142: 70887 | J142: 0 | K142: 4880510
A143: 02 | B143: 22 | C143: 01 | D143: 3 | E143: BRZEG DOLNY | F143: 10864013 | G143: 10805447 | H143: 0 | I143: 58566 | J143: 0 | K143: 18230836
A144: 02 | B144: 22 | C144: 02 | D144: 2 | E144: WIŃSKO | F144: 13196086 | G144: 6136223 | H144: 7032062 | I144: 27801 | J144: 0 | K144: 5811985
A145: 02 | B145: 22 | C145: 03 | D145: 3 | E145: WOŁÓW | F145: 25339370 | G145: 15727713 | H145: 9470026 | I145: 141631 | J145: 0 | K145: 20711160
A146: 02 | B146: 23 | C146: 01 | D146: 2 | E146: CZERNICA | F146: 21131885 | G146: 21131885 | H146: 0 | I146: 0 | J146: 0 | K146: 32444927
A147: 02 | B147: 23 | C147: 02 | D147: 2 | E147: DŁUGOŁĘKA | F147: 40975783 | G147: 40975783 | H147: 0 | I147: 0 | J147: 0 | K147: 67350476
A148: 02 | B148: 23 | C148: 03 | D148: 2 | E148: JORDANÓW ŚLĄSKI | F148: 3938253 | G148: 2779803 | H148: 1158450 | I148: 0 | J148: 0 | K148: 2590891
A149: 02 | B149: 23 | C149: 04 | D149: 3 | E149: KĄTY WROCŁAWSKIE | F149: 25819761 | G149: 25819761 | H149: 0 | I149: 0 | J149: 1016842 | K149: 43135871
A150: 02 | B150: 23 | C150: 05 | D150: 2 | E150: KOBIERZYCE | F150: 27588640 | G150: 27588640 | H150: 0 | I150: 0 | J150: 25362803 | K150: 68047116
A151: 02 | B151: 23 | C151: 06 | D151: 2 | E151: MIETKÓW | F151: 4027765 | G151: 3179027 | H151: 848738 | I151: 0 | J151: 0 | K151: 2913717
A152: 02 | B152: 23 | C152: 07 | D152: 3 | E152: SOBÓTKA | F152: 12797537 | G152: 11592761 | H152: 1052391 | I152: 152385 | J152: 0 | K152: 13416414
A153: 02 | B153: 23 | C153: 08 | D153: 3 | E153: SIECHNICE | F153: 26566532 | G153: 26566532 | H153: 0 | I153: 0 | J153: 2591803 | K153: 49033258
A154: 02 | B154: 23 | C154: 09 | D154: 2 | E154: ŻÓRAWINA | F154: 11351526 | G154: 10377067 | H154: 974459 | I154: 0 | J154: 0 | K154: 17857588
A155: 02 | B155: 24 | C155: 01 | D155: 3 | E155: BARDO | F155: 5710086 | G155: 3977410 | H155: 1704396 | I155: 28280 | J155: 0 | K155: 3924460
A156: 02 | B156: 24 | C156: 02 | D156: 2 | E156: CIEPŁOWODY | F156: 3229195 | G156: 2498156 | H156: 731039 | I156: 0 | J156: 0 | K156: 1951054
A157: 02 | B157: 24 | C157: 03 | D157: 2 | E157: KAMIENIEC ZĄBKOWICKI | F157: 6321039 | G157: 5140235 | H157: 1180804 | I157: 0 | J157: 0 | K157: 7220650
A158: 02 | B158: 24 | C158: 04 | D158: 2 | E158: STOSZOWICE | F158: 7173426 | G158: 3669790 | H158: 3503636 | I158: 0 | J158: 0 | K158: 3604276
A159: 02 | B159: 24 | C159: 05 | D159: 3 | E159: ZĄBKOWICE ŚLĄSKIE | F159: 16422416 | G159: 14918449 | H159: 1362284 | I159: 141683 | J159: 0 | K159: 20444441
A160: 02 | B160: 24 | C160: 06 | D160: 3 | E160: ZIĘBICE | F160: 22096227 | G160: 10729022 | H160: 11338900 | I160: 28305 | J160: 0 | K160: 10711945
A161: 02 | B161: 24 | C161: 07 | D161: 3 | E161: ZŁOTY STOK | F161: 6510543 | G161: 3419712 | H161: 3062859 | I161: 27972 | J161: 0 | K161: 3139691
A162: 02 | B162: 25 | C162: 01 | D162: 1 | E162: ZAWIDÓW | F162: 4251916 | G162: 3345797 | H162: 906119 | I162: 0 | J162: 0 | K162: 4340387
A163: 02 | B163: 25 | C163: 02 | D163: 1 | E163: ZGORZELEC | F163: 20823413 | G163: 20823413 | H163: 0 | I163: 0 | J163: 0 | K163: 36037713
A164: 02 | B164: 25 | C164: 03 | D164: 3 | E164: BOGATYNIA | F164: 17469406 | G164: 17430637 | H164: 0 | I164: 38769 | J164: 8611504 | K164: 26418270
A165: 02 | B165: 25 | C165: 04 | D165: 3 | E165: PIEŃSK | F165: 9372944 | G165: 4662759 | H165: 4702877 | I165: 7308 | J165: 0 | K165: 6244841
A166: 02 | B166: 25 | C166: 05 | D166: 2 | E166: SULIKÓW | F166: 5293435 | G166: 4259480 | H166: 1033955 | I166: 0 | J166: 0 | K166: 4822780
A167: 02 | B167: 25 | C167: 06 | D167: 3 | E167: WĘGLINIEC | F167: 11516632 | G167: 7394855 | H167: 4098242 | I167: 23535 | J167: 0 | K167: 5753030
A168: 02 | B168: 25 | C168: 07 | D168: 2 | E168: ZGORZELEC | F168: 6810792 | G168: 5308613 | H168: 1502179 | I168: 0 | J168: 0 | K168: 7484079
A169: 02 | B169: 26 | C169: 01 | D169: 1 | E169: WOJCIESZÓW | F169: 4972146 | G169: 3102983 | H169: 1869163 | I169: 0 | J169: 0 | K169: 2325605
A170: 02 | B170: 26 | C170: 02 | D170: 1 | E170: ZŁOTORYJA | F170: 10850323 | G170: 8213344 | H170: 2472102 | I170: 164877 | J170: 0 | K170: 16178749
A171: 02 | B171: 26 | C171: 03 | D171: 2 | E171: PIELGRZYMKA | F171: 6799011 | G171: 3820516 | H171: 2978495 | I171: 0 | J171: 0 | K171: 2817610
A172: 02 | B172: 26 | C172: 04 | D172: 3 | E172: ŚWIERZAWA | F172: 10840268 | G172: 6098821 | H172: 4610412 | I172: 131035 | J172: 0 | K172: 4221765
A173: 02 | B173: 26 | C173: 05 | D173: 2 | E173: ZAGRODNO | F173: 4541149 | G173: 3125836 | H173: 1415313 | I173: 0 | J173: 0 | K173: 3309660
A174: 02 | B174: 26 | C174: 06 | D174: 2 | E174: ZŁOTORYJA | F174: 7532676 | G174: 5937742 | H174: 1528445 | I174: 66489 | J174: 0 | K174: 5849728
A175: 02 | B175: 61 | C175: 01 | D175: 1 | E175: Jelenia Góra | F175: 52974672 | G175: 52974672 | H175: 0 | I175: 0 | J175: 0 | K175: 83918161
A176: 02 | B176: 62 | C176: 01 | D176: 1 | E176: Legnica | F176: 65669589 | G176: 65257286 | H176: 0 | I176: 412303 | J176: 0 | K176: 112758726
A177: 02 | B177: 64 | C177: 01 | D177: 1 | E177: Wrocław | F177: 396201660 | G177: 396201660 | H177: 0 | I177: 0 | J177: 0 | K177: 1226069324
A178: 02 | B178: 65 | C178: 01 | D178: 1 | E178: Wałbrzych | F178: 82939255 | G178: 58660261 | H178: 23192159 | I178: 1086835 | J178: 0 | K178: 100383953
A179: 02 Suma | F179: =SUBTOTAL(9,F10:F178) -> 2580086719 | G179: 2089273252 | H179: 479400285 | I179: 11413182 | J179: 77647602 | K179: 3610077462
A180: 04 | B180: 01 | C180: 01 | D180: 1 | E180: ALEKSANDRÓW KUJAWSKI | F180: 15624489 | G180: 9462649 | H180: 6046629 | I180: 115211 | J180: 0 | K180: 8602802
A181: 04 | B181: 01 | C181: 02 | D181: 1 | E181: CIECHOCINEK | F181: 5594927 | G181: 5581654 | H181: 0 | I181: 13273 | J181: 0 | K181: 11673630
A182: 04 | B182: 01 | C182: 03 | D182: 1 | E182: NIESZAWA | F182: 1624091 | G182: 1218193 | H182: 386252 | I182: 19646 | J182: 0 | K182: 2279309
A183: 04 | B183: 01 | C183: 04 | D183: 2 | E183: ALEKSANDRÓW KUJAWSKI | F183: 15839446 | G183: 8722548 | H183: 7116898 | I183: 0 | J183: 0 | K183: 8152412
A184: 04 | B184: 01 | C184: 05 | D184: 2 | E184: BĄDKOWO | F184: 6517373 | G184: 3957711 | H184: 2543432 | I184: 16230 | J184: 0 | K184: 2546113
A185: 04 | B185: 01 | C185: 06 | D185: 2 | E185: KONECK | F185: 5823366 | G185: 3333242 | H185: 2446904 | I185: 43220 | J185: 0 | K185: 1946928
A186: 04 | B186: 01 | C186: 07 | D186: 2 | E186: RACIĄŻEK | F186: 5121581 | G186: 2809696 | H186: 2240861 | I186: 71024 | J186: 0 | K186: 1853355
A187: 04 | B187: 01 | C187: 08 | D187: 2 | E187: WAGANIEC | F187: 7739810 | G187: 4271241 | H187: 3224996 | I187: 243573 | J187: 0 | K187: 2197980
A188: 04 | B188: 01 | C188: 09 | D188: 2 | E188: ZAKRZEWO | F188: 4966478 | G188: 3696657 | H188: 1132417 | I188: 137404 | J188: 0 | K188: 1417933
A189: 04 | B189: 02 | C189: 01 | D189: 1 | E189: BRODNICA | F189: 29261632 | G189: 29184234 | H189: 0 | I189: 77398 | J189: 0 | K189: 28680424
A190: 04 | B190: 02 | C190: 02 | D190: 2 | E190: BOBROWO | F190: 12872488 | G190: 7279419 | H190: 5433782 | I190: 159287 | J190: 0 | K190: 2754530
A191: 04 | B191: 02 | C191: 03 | D191: 2 | E191: BRODNICA | F191: 9383898 | G191: 6460915 | H191: 2918631 | I191: 4352 | J191: 0 | K191: 7633488
A192: 04 | B192: 02 | C192: 04 | D192: 2 | E192: BRZOZIE | F192: 7180360 | G192: 3992703 | H192: 3172657 | I192: 15000 | J192: 0 | K192: 2356196
A193: 04 | B193: 02 | C193: 05 | D193: 3 | E193: GÓRZNO | F193: 8185054 | G193: 5823988 | H193: 2361066 | I193: 0 | J193: 0 | K193: 2603345
A194: 04 | B194: 02 | C194: 06 | D194: 2 | E194: BARTNICZKA | F194: 6989918 | G194: 3896575 | H194: 3076822 | I194: 16521 | J194: 0 | K194: 2744204
A195: 04 | B195: 02 | C195: 07 | D195: 3 | E195: JABŁONOWO POMORSKIE | F195: 15174924 | G195: 8229716 | H195: 6475647 | I195: 469561 | J195: 0 | K195: 5541719
A196: 04 | B196: 02 | C196: 08 | D196: 2 | E196: OSIEK | F196: 6058868 | G196: 3666471 | H196: 2392397 | I196: 0 | J196: 0 | K196: 2234340
A197: 04 | B197: 02 | C197: 09 | D197: 2 | E197: ŚWIEDZIEBNIA | F197: 10119645 | G197: 4615176 | H197: 5408488 | I197: 95981 | J197: 0 | K197: 2316402
A198: 04 | B198: 02 | C198: 10 | D198: 2 | E198: ZBICZNO | F198: 7876663 | G198: 4825139 | H198: 3051524 | I198: 0 | J198: 0 | K198: 3227132
A199: 04 | B199: 03 | C199: 01 | D199: 2 | E199: BIAŁE BŁOTA | F199: 27377423 | G199: 27233743 | H199: 0 | I199: 143680 | J199: 0 | K199: 38431586
A200: 04 | B200: 03 | C200: 02 | D200: 2 | E200: DĄBROWA CHEŁMIŃSKA | F200: 12600558 | G200: 8223627 | H200: 4376931 | I200: 0 | J200: 0 | K200: 7499637
A201: 04 | B201: 03 | C201: 03 | D201: 2 | E201: DOBRCZ | F201: 16365803 | G201: 12527399 | H201: 3838404 | I201: 0 | J201: 0 | K201: 11575755
A202: 04 | B202: 03 | C202: 04 | D202: 3 | E202: KORONOWO | F202: 30819910 | G202: 19526839 | H202: 10625036 | I202: 668035 | J202: 0 | K202: 19081644
... 2301 more rows
